[Event "Charlotte GM-A May 2022"]
[Site "Charlotte"]
[Date "2022.05.07"]
[Round "6.3"]
[White "Song, Micheal"]
[Black "Ostrovskiy, Aleksandr"]
[Result "1-0"]
[ECO "E48"]
[WhiteElo "2408"]
[BlackElo "2397"]
[Annotator "TA"]
[PlyCount "113"]
[EventDate "2022.05.04"]
[EventType "tourn"]
[EventCountry "USA"]
[SourceTitle "playchess.com"]
[Source "ChessBase"]
[SourceQuality "1"]
[TimeControl "5400+30"]

{[%evp 14,113,0,0,-3,-7,-14,-18,-7,-4,-7,-2,0,-11,51,43,48,27,36,44,55,27,212,213,221,192,270,203,338,130,100,150,218,212,212,210,212,214,407,91,100,102,108,111,112,66,169,81,241,231,203,229,220,222,537,131,371,77,105,75,79,70,103,104,131,127,961,947,781,131,161,127,224,198,263,248,335,325,947,940,933,588,931,925,910,905,825,677,997,988,851,826,29975,29976,29975,29976,29976,29977,29979,29980,29978,29976]} 1. d4 {[%emt 0:00:03]} Nf6 {[%emt 0:02:35]} 2. c4 {[%emt 0:00:15]} e6 {[%emt 0:00:05]} 3. Nc3 {[%emt 0:00:26]} Bb4 {[%emt 0:00:07]} 4. e3 {[%emt 0:00:15]} O-O {[%emt 0:00:17]} 5. Bd3 {[%emt 0:00:49]} d5 {[%emt 0:01:20]} 6. cxd5 {[%emt 0:02:11]} exd5 {[%emt 0:02:36]} 7. a3 {[%emt 0:00:18]} Bd6 {[%emt 0:02:27]} 8. Nge2 {[%emt 0:00:31]} Re8 {[%emt 0:02:07] E48: Nimzo-Indian: Rubinstein: 5 Bd3 d5 including 6 Ne2, but excluding 6 a3.} 9. Qc2 {[%emt 0:00:11]} c6 {[%emt 0:13:37][%cal Bc7c6,Bc6c5][%mdl 32]} 10. Bd2 {[%emt 0:02:35]} Nbd7 {[%emt 0:00:46] The position is equal.} 11. f3 {[%emt 0:02:03]} c5 {[%emt 0:03:18]} 12. h4 {[%emt 0:04:09]} a6 {[%emt 0:06:52] [#]} 13. h5 $146 {[%emt 0:10:01]} ({Predecessor:} 13. O-O-O b5 14. g4 b4 15. axb4 cxb4 16. Na4 Bb7 17. Kb1 Rc8 18. Qb3 Qa5 19. Qa2 {0-1 (33) Predke,A (2682)-Petrosyan,M (2620) Warsaw 2021}) 13... Nf8 {[%emt 0:06:35]} ({Black should try} 13... h6 $11) 14. g4 {[%emt 0:04:07]} Ne6 {[%emt 0:03:23]} 15. dxc5 {[%emt 0:07:55]} Bxc5 {[%emt 0:02:18]} 16. O-O-O $1 {[%emt 0:01:17]} Bd7 {[%emt 0:04:11]} 17. f4 {[%emt 0:14:16] And now g5 would win.} Nxg4 {[%emt 0:19:40]} (17... Rc8 $1 $11) 18. Bxh7+ $18 {[%emt 0:00:20]} Kf8 {[%emt 0:01:11]} 19. h6 {[%emt 0:03:09]} (19. Nxd5 $6 Rc8 $16) 19... Nxh6 {[%emt 0:10:48]} (19... Rc8 $142) 20. Nxd5 {[%emt 0:02:06]} Bc6 {[%emt 0:09:33] [#]} (20... Ba4 $142 21. Qxa4 Qxd5) 21. Bc3 $1 {[%emt 0:00:09]} Bxd5 $16 {[%emt 0:02:13]} 22. e4 {[%emt 0:00:21]} Bxe4 {[%emt 0:03:34]} (22... Be3+ $2 23. Kb1 Ba2+ 24. Kxa2) (22... Bb3 $16 23. Qxb3 (23. Rxd8 Bxc2 24. Rxa8 Rxa8 $16) 23... Qb6 24. Qxb6 Bxb6) 23. Bxe4 $18 {[%emt 0:00:10]} (23. Qxe4 Qb6 24. Qg2 Rad8 $11) 23... Qb6 {[%emt 0:00:11]} 24. f5 $1 {[%emt 0:01:12][%mdl 1024] White has strong compensation.} Ng5 {[%emt 0:00:19]} 25. Bd5 {[%emt 0:01:13][%cal Of5f6] A strong pair of Bishops.} Be7 {[%emt 0:02:21] Prevents f6.} (25... Be3+ 26. Kb1 Nh7) 26. Nf4 $2 {[%emt 0:18:03]} (26. Bd4 $18 Qd8 27. Qc3 $1) 26... Rac8 $16 {[%emt 0:00:27]} 27. Nh5 {[%emt 0:03:50] Strongly threatening Kb1.} Qe3+ {[%emt 0:00:25]} 28. Kb1 {[%emt 0:00:56]} Rxc3 {[%emt 0:00:05]} 29. bxc3 {[%emt 0:00:45]} (29. Qxc3 $16 Qxc3 30. bxc3) 29... Rc8 {[%emt 0:00:28]} (29... Qe5 $14) 30. f6 {[%emt 0:01:15]} (30. c4 $1 $18 {has better winning chances. Qb2 is the strong threat.} Bd6 31. Qb2 (31. Bxb7 Rb8 $16)) 30... Bxf6 $2 {[%emt 0:01:07]} (30... gxf6 $16 31. Rd3 Qe5) 31. Nxf6 $18 {[%emt 0:00:17] Really sharp!} Qb6+ {[%emt 0:00:00]} 32. Qb2 {[%emt 0:02:30]} Qxf6 {[%emt 0:00:05]} 33. Qxb7 $40 {[%emt 0:01:14][%mdl 128] White wants a kill.} Qxc3 {[%emt 0:01:04] [#]} (33... Rd8 34. Bb3 Rxd1+ 35. Bxd1 (35. Rxd1 g6 $16) 35... Qe7) 34. Bb3 $2 {[%emt 0:03:08]} (34. Bc6 $1 $18 {[%mdl 512] is the precise move to win.} Qxc6 35. Rd8+ $3 {[%mdl 512]} Rxd8 36. Qxc6) 34... Re8 {[%emt 0:00:49]} (34... Qc5 $16 {might work better.}) 35. Rh4 $2 {[%emt 0:04:48]} (35. Ba4 $1 $18 {[%cal Ra4e8] and the rest is easy.} Qc8 36. Qb4+ Kg8 37. Bxe8 Qxe8 38. Qc4) 35... Qf6 {[%emt 0:00:30]} 36. Qb4+ {[%emt 0:00:50]} Kg8 {[%emt 0:00:13]} 37. Qd4 {[%emt 0:01:00] Black must now prevent Qxf6.} Qg6+ {[%emt 0:00:35] [#]} 38. Bc2 $1 {[%emt 0:01:20]} Rb8+ {[%emt 0:00:45]} 39. Kc1 {[%emt 0:00:09] Active counter play!} Qe6 {[%emt 0:00:30][%mdl 8192] [#]} (39... Rc8 $2 {[#]} 40. Qd8+ $3 {[%mdl 512]} Rxd8 41. Rxd8+ Kh7 42. Bxg6+ fxg6 43. Ra8 $18) (39... f5 $16) 40. Qd8+ $1 {[%emt 0:00:32][%mdl 512]} Qe8 {[%emt 0:00:27]} 41. Qxe8+ $2 {[%emt 0:00:16]} (41. Qxg5 f6 42. Qd5+ Qf7 43. Qd6) 41... Rxe8 {[%emt 0:00:03]} 42. Ra4 {[%emt 0:00:10]} f5 {[%emt 0:00:58]} (42... Ne6 $16 43. Rxa6 Ng4) 43. Rd5 {[%emt 0:10:55]} Ne4 {[%emt 0:00:31]} (43... Ne6 $142 44. Re5 (44. Rxa6 Nc7 $11) (44. Bxf5 Nxf5 45. Rxf5 Rc8+ 46. Kd2 Rc6 $18) 44... Kf7 45. Bxf5 (45. Rxa6 Kf6 $18) 45... Nxf5) 44. Rxa6 {[%emt 0:00:00]} Nc3 {[%emt 0:01:04]} 45. Rda5 {[%emt 0:01:00]} f4 $2 {[%emt 0:00:00]} (45... Ne2+ 46. Kd2 Nd4) 46. Ra8 {[%emt 0:00:00]} Rxa8 {[%emt 0:00:00]} 47. Rxa8+ {[%emt 0:00:00][%mdl 4096] Endgame KRB-KNN} Kf7 {[%emt 0:00:00]} 48. Kd2 {[%emt 0:00:00]} Nb5 {[%emt 0:00:00]} 49. a4 {[%emt 0:00:00]} Nd4 {[%emt 0:00:02]} 50. Be4 {[%emt 0:00:00] Hoping for Kd3.} Ng4 {[%emt 0:00:33]} 51. Kd3 {[%emt 0:00:00]} Ne6 {[%emt 0:00:12]} 52. Bd5 {[%emt 0:00:00]} Ne3 {[%emt 0:01:07]} 53. Ra7+ {[%emt 0:00:00] White mates.} Kf6 {[%emt 0:00:01]} 54. Bxe6 {[%emt 0:00:00]} Kxe6 {[%emt 0:00:02]} 55. Rxg7 {[%emt 0:00:00]} Nd5 {[%emt 0:00:51]} 56. a5 {[%emt 0:00:00]} Ke5 {[%emt 0:00:52]} 57. Ke2 {[%emt 0:00:00] Weighted Error Value: White=0.63/Black=0.76} 1-0

[Event "Charlotte GM-A May 2022"]
[Site "Charlotte"]
[Date "2022.05.07"]
[Round "6.4"]
[White "Stremavicius, Titas"]
[Black "Liang, Jason"]
[Result "1/2-1/2"]
[ECO "A13"]
[WhiteElo "2508"]
[BlackElo "2432"]
[Annotator "TA"]
[PlyCount "178"]
[EventDate "2022.05.04"]
[EventType "tourn"]
[EventCountry "USA"]
[SourceTitle "playchess.com"]
[Source "ChessBase"]
[SourceQuality "1"]
[TimeControl "5400+30"]

{[%evp 11,177,0,0,-14,-10,-6,-2,-4,27,-17,-17,-14,-8,-12,0,0,12,10,12,29,52,-18,33,-51,-31,-33,49,50,37,60,94,95,108,107,125,127,157,151,176,95,91,93,118,75,109,95,117,124,125,132,127,140,137,126,131,130,136,145,174,169,208,135,119,117,137,129,134,131,128,105,100,95,99,87,91,95,89,0,78,69,53,30,32,39,29,0,0,0,0,0,0,0,0,0,0,0,8,-8,-8,-8,-8,-85,-83,-105,-80,-118,-114,-100,-90,-431,-409,-470,-447,-1458,-159,-256,-247,-233,-225,-230,-8,-8,-8,-8,-8,-8,-8,-25,-25,-25,-25,-25,-25,-25,-25,-25,-25,-25,-23,-23,-18,-18,-18,-15,-9,-9,-8,-8,-8,-8,-8,-8,-8,-8,-8,-8,0,-8,-8,-8,-8,-8,-8,-8,-8,-8,0,0]} 1. c4 {[%emt 0:03:15]} e6 {[%emt 0:00:09]} 2. g3 {[%emt 0:00:36]} d5 {[%emt 0:00:09]} 3. Nf3 {[%emt 0:00:10]} dxc4 {[%emt 0:00:12]} 4. Qa4+ {[%emt 0:00:09]} Nd7 {[%emt 0:00:12]} 5. Bg2 {[%emt 0:00:07]} a6 {[%emt 0:00:09]} 6. Qxc4 {[%emt 0:00:05]} b5 {[%emt 0:00:09]} 7. Qb3 {[%emt 0:00:07][%cal Of3e5] A13: English Opening: 1...e6.} Bb7 {[%emt 0:00:16]} 8. O-O {[%emt 0:00:07]} c5 {[%emt 0:01:00]} 9. d3 {[%emt 0:01:04]} Rc8 {[%emt 0:01:42]} 10. Nc3 {[%emt 0:06:12]} Ngf6 {[%emt 0:01:00]} 11. Bg5 {[%emt 0:07:52]} Be7 {[%emt 0:01:35] [#]} 12. a4 $146 {[%emt 0:00:07]} ({Predecessor:} 12. Rac1 O-O 13. Nd2 Bxg2 14. Kxg2 h6 15. Bxf6 Nxf6 16. Rfd1 Qd7 17. a4 Rb8 18. axb5 axb5 {½-½ (24) Vadasz,L (2400)-Gyimesi,Z (2390) Kecskemet 1993}) 12... c4 {[%emt 0:10:36]} 13. dxc4 {[%emt 0:00:22]} Nc5 {[%emt 0:00:08]} 14. Qd1 {[%emt 0:00:07]} Qxd1 {[%emt 0:09:05]} 15. Rfxd1 {[%emt 0:06:19]} b4 {[%emt 0:02:10]} 16. Nb1 {[%emt 0:00:13]} (16. Na2 $14) 16... Nb3 {[%emt 0:02:05] [#]} (16... Nfe4 $11 17. Bxe7 Kxe7) 17. Ra2 {[%emt 0:01:19]} (17. Nd4 $1 $14 Bxg2 (17... Nxa1 18. Bxb7) 18. Nxb3) 17... Ne4 $1 $15 {[%emt 0:02:12]} 18. Be3 {[%emt 0:07:23]} Bf6 {[%emt 0:31:46]} (18... Bc5 $15) 19. Nfd2 {[%emt 0:26:14]} Rd8 {[%emt 0:00:35]} 20. a5 {[%emt 0:00:49][%cal Od1e1]} Nexd2 {[%emt 0:05:58]} 21. Nxd2 {[%emt 0:01:52][%cal Bb1d2,Bd2c4,Bc4b6][%mdl 32]} Bxg2 {[%emt 0:00:50]} 22. Kxg2 {[%emt 0:00:02]} O-O {[%emt 0:00:57]} 23. Ra4 {[%emt 0:01:43]} Be7 {[%emt 0:02:10]} 24. c5 $1 {[%emt 0:08:32]} Nd4 {[%emt 0:11:10]} 25. Rc1 {[%emt 0:10:45] Against Nc2} (25. Rxb4 $18 Nc2 26. Rc4 Nxe3+ 27. fxe3) 25... Nc6 $16 {[%emt 0:00:39]} (25... Nxe2 $2 26. Rc4 $18) 26. Nc4 {[%emt 0:03:54]} h5 {[%emt 0:02:40]} 27. b3 {[%emt 0:01:15]} g5 {[%emt 0:01:57]} 28. Bd2 {[%emt 0:01:13][%cal Be3d2,Bd2b4,Bb4c3][%mdl 32]} Rd5 {[%emt 0:03:17]} 29. Bxb4 {[%emt 0:00:25]} Rb8 {[%emt 0:01:27]} 30. Nb6 $1 {[%emt 0:03:01]} (30. e4 Rd3 $14) 30... Rd4 {[%emt 0:00:07]} (30... Nxb4 $2 31. c6 (31. Rxb4 Bxc5 32. Nxd5 Bxb4 $16) (31. Nxd5 exd5 32. c6 Rc8 $11) 31... Bd6 32. c7 (32. Nxd5 exd5 33. e4 Kf8 $14) 32... Bxc7 33. Nxd5 (33. Rxc7 Rb5 $16) (33. Rxb4 Bxb6 34. axb6 a5 $16) 33... Nxd5 34. e4) 31. Bc3 {[%emt 0:03:52]} Rxa4 {[%emt 0:00:14]} 32. bxa4 {[%emt 0:00:25]} ({Resist} 32. Nxa4 $6 Rxb3 33. Nb2 f6 $14) 32... Rd8 {[%emt 0:00:15]} 33. Nc4 {[%emt 0:01:45]} Rd5 {[%emt 0:00:33] Inhibits Ne5.} 34. Bd2 $1 {[%emt 0:01:06]} f5 {[%emt 0:04:41]} 35. Be3 {[%emt 0:00:24]} e5 {[%emt 0:00:41]} 36. Nb6 {[%emt 0:00:25]} Rd8 {[%emt 0:00:11]} 37. f4 {[%emt 0:00:05]} exf4 {[%emt 0:00:18]} 38. gxf4 {[%emt 0:00:02]} gxf4 {[%emt 0:00:36]} 39. Bxf4 {[%emt 0:00:50]} Kf7 {[%emt 0:00:37]} 40. Nc4 {[%emt 0:00:41]} Ke6 {[%emt 0:01:03] Inhibits Ne5.} 41. Bd6 {[%emt 0:06:06]} Rg8+ {[%emt 0:00:36]} 42. Kf2 {[%emt 0:00:00] aiming for Bxe7.} Bh4+ {[%emt 0:00:21]} 43. Bg3 {[%emt 0:00:00]} Be7 {[%emt 0:00:08]} 44. Bd6 {[%emt 0:00:00] Black must now prevent Bxe7.} Bh4+ {[%emt 0:00:07]} 45. Kf1 {[%emt 0:00:00]} Rg4 {[%emt 0:00:19]} 46. Rc3 {[%emt 0:00:00]} Bf6 $1 {[%emt 0:00:47]} 47. Re3+ {[%emt 0:00:00]} Kf7 {[%emt 0:00:19]} 48. Nb6 {[%emt 0:00:23]} Bd4 {[%emt 0:00:15]} 49. Rg3 {[%emt 0:00:02]} Nxa5 {[%emt 0:01:21]} 50. Kg2 {[%emt 0:01:42]} Nb7 {[%emt 0:05:46]} 51. Nc4 {[%emt 0:01:33]} Ke6 {[%emt 0:00:00]} (51... Nxc5 $2 52. e3 $18) 52. h3 {[%emt 0:00:46]} Rxg3+ {[%emt 0:00:00]} 53. Kxg3 $11 {[%emt 0:00:12][%mdl 4096] Endgame KBN-KBN} Kd5 {[%emt 0:00:00]} 54. Nb6+ {[%emt 0:00:37]} Kc6 {[%emt 0:00:00]} 55. Nc4 {[%emt 0:01:06]} Nxc5 {[%emt 0:00:00] Hoping for ...Ne4+.} 56. Bf8 {[%emt 0:00:20]} (56. Be5 $1 $11 Kd5 57. Bxd4 Kxd4 58. Nb6) 56... Nxa4 $17 {[%emt 0:00:00]} 57. Kf4 {[%emt 0:00:16]} Kd5 {[%emt 0:00:00]} 58. Nd2 {[%emt 0:00:28]} Nc3 {[%emt 0:00:23]} 59. e3 {[%emt 0:01:00]} Bb6 {[%emt 0:00:11] And now ...a5 would win.} 60. Bg7 $2 {[%emt 0:00:29][%mdl 8192]} (60. Kxf5 $17 {is more resistant.} Bxe3 61. Nb3) 60... Ne2+ $19 {[%emt 0:00:24]} 61. Kxf5 {[%emt 0:00:31]} Bxe3 {[%emt 0:00:06]} 62. Nb3 {[%emt 0:00:30] [#]} (62. Nb1 $142 a5 63. h4) 62... Kc4 $2 {[%emt 0:01:08]} (62... Nd4+ $1 $19 {is more deadly.} 63. Bxd4 Bxd4) 63. Ke4 {[%emt 0:00:31]} (63. Na5+ $17 Kb5 64. Nb7) 63... Bg5 {[%emt 0:00:37]} ({Not} 63... Kxb3 64. Kxe3 Ng3 65. Be5 Nf5+ 66. Kf4 $11) 64. Na5+ {[%emt 0:00:30] [#]} Kb5 $1 {[%emt 0:00:08]} 65. Nb3 {[%emt 0:00:31]} a5 $2 {[%emt 0:01:33]} ({Black should play} 65... Ng1 $19 66. Kd5 (66. Nd4+ $2 Kc4 $19) 66... Nxh3 67. Nd4+ Kb6) 66. Nxa5 $11 {[%emt 0:00:31]} Kxa5 {[%emt 0:00:12]} 67. Kf5 {[%emt 0:00:19]} Bd8 {[%emt 0:01:19]} 68. Be5 {[%emt 0:00:15]} Kb5 {[%emt 0:02:26] Strongly threatening ...Kc4.} 69. h4 {[%emt 0:00:27]} Kc6 {[%emt 0:00:32] Threatens to win with ...Kd5.} 70. Kg6 {[%emt 0:00:09]} Kd5 {[%emt 0:00:06]} 71. Bb8 {[%emt 0:00:12]} Ke6 {[%emt 0:00:25]} 72. Kxh5 {[%emt 0:00:45]} Kf5 {[%emt 0:00:07]} 73. Kh6 {[%emt 0:00:04]} Nd4 {[%emt 0:00:16]} 74. Kg7 {[%emt 0:00:41]} Nc6 {[%emt 0:00:08]} 75. Bg3 {[%emt 0:00:43]} Bf6+ {[%emt 0:00:17]} 76. Kf7 {[%emt 0:00:13] The position is equal.} Nd8+ {[%emt 0:02:42]} 77. Ke8 {[%emt 0:01:02]} Ke6 {[%emt 0:00:00]} 78. h5 {[%emt 0:00:34]} Nf7 {[%emt 0:01:00]} 79. Bf4 {[%emt 0:00:26]} Be7 {[%emt 0:00:00]} 80. h6 {[%emt 0:00:20]} Bf6 {[%emt 0:00:00]} (80... Nh8 {is interesting.} 81. h7 Nf7 82. Bg3 Bf6) 81. Kf8 {[%emt 0:01:06]} Nh8 {[%emt 0:00:00] ( -> ...Ng6+)} 82. Bc1 {[%emt 0:00:30]} Kf5 {[%emt 0:00:00]} 83. Ke8 {[%emt 0:00:29]} Ke6 {[%emt 0:00:00]} 84. Kf8 $1 {[%emt 0:00:06]} Ng6+ {[%emt 0:00:09]} 85. Kg8 {[%emt 0:00:27]} Ke7 {[%emt 0:00:18]} 86. h7 {[%emt 0:01:01]} Ke8 {[%emt 0:00:05][%cal Rg6e7]} 87. Ba3 {[%emt 0:00:19]} Bd4 {[%emt 0:00:27]} 88. Bb4 {[%emt 0:00:19]} Nh8 {[%emt 0:00:30]} 89. Bc3 {[%emt 0:00:26]} Bxc3 {[%emt 0:00:18] What a bad dream for Black.  Weighted Error Value: White=0.28 (precise) /Black=0.11 (very precise)} 1/2-1/2

[Event "Charlotte GM-A May 2022"]
[Site "Charlotte"]
[Date "2022.05.07"]
[Round "6.5"]
[White "Williams, Justus"]
[Black "Sheng, Joshua"]
[Result "0-1"]
[ECO "A12"]
[WhiteElo "2417"]
[BlackElo "2487"]
[Annotator "TA"]
[PlyCount "80"]
[EventDate "2022.05.04"]
[EventType "tourn"]
[EventCountry "USA"]
[SourceTitle "playchess.com"]
[Source "ChessBase"]
[SourceQuality "1"]
[TimeControl "5400+30"]

{[%evp 9,80,6,14,-9,-10,-25,-19,-21,-10,-21,-14,-17,-15,-33,-16,-23,-12,-30,0,-10,0,0,17,0,0,0,0,-13,8,-8,0,0,0,-5,0,-21,0,-20,1,-41,-29,-16,-6,-15,-8,-52,-52,-62,-41,-54,-62,-68,-74,-81,-62,-109,-99,-95,-95,-95,-64,-275,-243,-432,-429,-577,-566,-714,-696,-1041,-1039,-29988,-29989]} 1. Nf3 {[%emt 0:03:25]} d5 {[%emt 0:00:04]} 2. e3 {[%emt 0:00:13]} Nf6 {[%emt 0:00:02]} 3. c4 {[%emt 0:00:11]} c6 {[%emt 0:00:09]} 4. b3 {[%emt 0:00:50]} Bg4 {[%emt 0:01:43]} 5. h3 {[%emt 0:01:48]} Bh5 {[%emt 0:00:13]} 6. cxd5 {[%emt 0:02:33] A12: English Opening: 1...c6 with b3 by White.} cxd5 {[%emt 0:02:59] [#]} 7. Bb5+ $146 {[%emt 0:05:33]} ({Predecessor:} 7. Bb2 Nc6 8. Be2 Bxf3 9. Bxf3 e5 10. d3 Be7 11. O-O O-O 12. Nd2 Rc8 13. a3 {0-1 (47) Pribyl,J (2397)-Acs,P (2514) Pardubice 2001}) 7... Nbd7 {[%emt 0:10:23]} 8. Bb2 {The position is equal.} a6 {[%emt 1:18:57]} 9. Be2 {[%emt 0:01:54]} e6 {[%emt 0:00:00]} 10. O-O Bd6 {[%emt 0:00:00]} 11. Nd4 Bxe2 {[%emt 0:00:00]} 12. Qxe2 O-O {[%emt 0:00:00]} 13. d3 Qa5 {[%emt 0:00:00]} 14. a3 Rfc8 {[%emt 0:00:00]} 15. f4 Rc7 {[%emt 0:00:00]} 16. Nd2 Rac8 {[%emt 0:00:00]} 17. b4 Qb6 {[%emt 0:00:00]} 18. N2b3 Bf8 {[%emt 0:00:00]} 19. Rf2 Ne8 {[%emt 0:00:00][%cal Bf6e8,Be8d6,Bd6b5,Bb5c3][%mdl 32]} 20. Raf1 Nd6 {[%emt 0:06:00]} 21. Qd1 {[%emt 0:36:06]} Nb5 {[%emt 0:00:00]} 22. Qg4 Nc3 {[%emt 0:00:00]} 23. Ba1 Qd6 {[%emt 0:00:00]} 24. Na5 b6 {[%emt 0:00:00]} 25. Nab3 Nf6 $36 {[%emt 0:02:30][%mdl 2048] Black has the initiative.} 26. Qf3 {[%emt 0:50:57]} Qd7 {[%emt 0:00:30]} 27. g4 {[%emt 0:00:30]} Qa4 {[%emt 0:00:30]} 28. Bb2 {[%emt 0:00:30]} a5 {[%emt 0:00:30]} 29. bxa5 {[%emt 0:00:00]} bxa5 {[%emt 0:00:00]} 30. Rc1 {[%emt 0:00:00]} Nb5 {[%emt 0:01:00] aiming for ...Nxd4. Black is more active.} ({Resist} 30... Bxa3 31. Ra1 Bxb2 32. Rxa4 Nxa4 33. Nb5 $18 (33. Nxa5 Bc3 $16)) 31. Rxc7 {[%emt 0:00:00]} Rxc7 {[%emt 0:00:00]} 32. f5 {[%emt 0:02:00]} (32. Rf1 $1 $15) 32... Nxd4 {[%emt 0:00:00]} 33. Nxd4 {[%emt 0:00:00]} e5 {[%emt 0:00:00][%cal Be6e5,Be5e4][%mdl 32]} 34. g5 Ne8 {[%emt 0:02:00]} 35. Ne6 {[%emt 0:00:00] [#] This move loses the game for White.} e4 $1 $19 {[%emt 0:00:00]} (35... fxe6 $2 36. fxe6 Nf6 37. gxf6 gxf6 38. Qxf6 Rg7+ 39. Kh2 $18) 36. Qf4 {[%emt 0:00:00] [#]} (36. Qg4 fxe6 37. fxe6) 36... Bd6 $1 {[%emt 0:00:00]} ({Don't do} 36... fxe6 37. fxe6 Qd1+ 38. Kg2 $18) 37. Qh4 {[%emt 0:00:00]} fxe6 {[%emt 0:00:00]} 38. g6 {[%emt 0:00:00]} h6 {[%emt 0:00:00]} 39. fxe6 {[%emt 0:00:00]} Qd1+ {[%emt 0:00:00]} 40. Rf1 {[%emt 0:00:00] [#]} Bh2+ $1 {[%emt 0:00:00][%mdl 512] Weighted Error Value: White=0.58/Black=0.07 (flawless)} 0-1